[Event "Titled Tuesday Blitz June 28 Early 2022"]
[White "Kopczynski, Michal"]
[Black "Terrieux, Kevin"]
[WhiteFideId "1124200"]
[BlackFideId "622591"]
[WhiteElo "2235"]
[BlackElo "2482"]
[Result "0-1"]
[Round "10"]
[TimeControl "180+1"]
[Date "2022.06.28"]
[WhiteClock "0:00:37"]
[BlackClock "0:00:30"]

1. e4 {[%clk 0:03:00]}  c5 {[%clk 0:03:00]} 2. d4 {[%clk 0:03:00]}  cxd4 {[%clk 0:02:59]} 3. c3 {[%clk 0:03:01]}  dxc3 {[%clk 0:02:59]} 4. Nxc3 {[%clk 0:03:02]}  e6 {[%clk 0:02:58]} 5. f4 {[%clk 0:03:03]}  a6 {[%clk 0:02:56]} 6. Nf3 {[%clk 0:03:03]}  Bc5 {[%clk 0:02:55]} 7. Bd3 {[%clk 0:03:03]}  Ne7 {[%clk 0:02:52]} 8. Qe2 {[%clk 0:02:59]}  Qb6 {[%clk 0:02:40]} 9. Bd2 {[%clk 0:02:57]}  Qd8 {[%clk 0:02:24]} 10. O-O-O {[%clk 0:02:52]}  Nbc6 {[%clk 0:02:12]} 11. Kb1 {[%clk 0:02:51]}  d6 {[%clk 0:02:08]} 12. e5 {[%clk 0:02:50]}  d5 {[%clk 0:02:06]} 13. f5 {[%clk 0:02:40]}  exf5 {[%clk 0:01:59]} 14. Bg5 {[%clk 0:02:33]}  Be6 {[%clk 0:01:58]} 15. Rc1 {[%clk 0:02:13]}  Ba7 {[%clk 0:01:57]} 16. Rhd1 {[%clk 0:02:12]}  h6 {[%clk 0:01:53]} 17. Bh4 {[%clk 0:02:12]}  d4 {[%clk 0:01:38]} 18. Na4 {[%clk 0:02:06]}  Qa5 {[%clk 0:01:35]} 19. b3 {[%clk 0:01:50]}  Nd5 {[%clk 0:01:26]} 20. Be1 {[%clk 0:01:49]}  Qd8 {[%clk 0:01:25]} 21. Bxa6 {[%clk 0:01:29]}  bxa6 {[%clk 0:01:19]} 22. Rxc6 {[%clk 0:01:28]}  O-O {[%clk 0:01:18]} 23. Nxd4 {[%clk 0:01:20]}  Bxd4 {[%clk 0:00:57]} 24. Rxd4 {[%clk 0:01:21]}  Qg5 {[%clk 0:00:45]} 25. Qd2 {[%clk 0:01:10]}  Ne3 {[%clk 0:00:31]} 26. h4 {[%clk 0:00:50]}  Qxg2 {[%clk 0:00:30]} 27. Qxe3 {[%clk 0:00:48]}  Qxc6 {[%clk 0:00:29]} 28. Rd6 {[%clk 0:00:43]}  Qe4+ {[%clk 0:00:29]} 29. Qxe4 {[%clk 0:00:42]}  fxe4 {[%clk 0:00:30]} 30. Nc5 {[%clk 0:00:41]}  Bf5 {[%clk 0:00:30]} 31. Nxa6 {[%clk 0:00:39]}  e3+ {[%clk 0:00:30]} 32. Kc1 {[%clk 0:00:38]}  Rac8+ {[%clk 0:00:30]} 33. Kd1 {[%clk 0:00:37]}  Bg4# {[%clk 0:00:30]} 0-1


[Site "https://www.chess.com"]

[Event "Titled Tuesday Blitz June 28 Early 2022"]
[White "Korchmar, Vasiliy"]
[Black "Kollars, Dmitrij"]
[WhiteFideId "24131750"]
[BlackFideId "12909572"]
[WhiteElo "2370"]
[BlackElo "2584"]
[Result "0-1"]
[Round "10"]
[TimeControl "180+1"]
[Date "2022.06.28"]
[WhiteClock "0:00:01"]
[BlackClock "0:00:14"]

1. e4 {[%clk 0:02:57]}  c6 {[%clk 0:02:58]} 2. d4 {[%clk 0:02:55]}  d5 {[%clk 0:02:59]} 3. e5 {[%clk 0:02:55]}  Bf5 {[%clk 0:02:58]} 4. c4 {[%clk 0:02:55]}  e6 {[%clk 0:02:58]} 5. Nc3 {[%clk 0:02:55]}  dxc4 {[%clk 0:02:52]} 6. Bxc4 {[%clk 0:02:55]}  Nd7 {[%clk 0:02:52]} 7. Nge2 {[%clk 0:02:54]}  Ne7 {[%clk 0:02:48]} 8. Ng3 {[%clk 0:02:54]}  Bg6 {[%clk 0:02:48]} 9. O-O {[%clk 0:02:43]}  Nf5 {[%clk 0:02:40]} 10. Nxf5 {[%clk 0:02:16]}  Bxf5 {[%clk 0:02:41]} 11. Be3 {[%clk 0:02:16]}  Be7 {[%clk 0:02:38]} 12. g4 {[%clk 0:02:06]}  Nb6 {[%clk 0:02:24]} 13. Bb3 {[%clk 0:01:55]}  Bg6 {[%clk 0:02:11]} 14. f4 {[%clk 0:01:54]}  h6 {[%clk 0:01:43]} 15. f5 {[%clk 0:01:53]}  exf5 {[%clk 0:01:43]} 16. gxf5 {[%clk 0:01:53]}  Bg5 {[%clk 0:01:43]} 17. fxg6 {[%clk 0:01:33]}  Bxe3+ {[%clk 0:01:43]} 18. Kh1 {[%clk 0:01:34]}  Qxd4 {[%clk 0:01:35]} 19. Bxf7+ {[%clk 0:01:17]}  Ke7 {[%clk 0:01:32]} 20. Qb3 {[%clk 0:01:17]}  Qg4 {[%clk 0:01:11]} 21. Rad1 {[%clk 0:00:08]}  Rhd8 {[%clk 0:00:45]} 22. Rxd8 {[%clk 0:00:03]}  Rxd8 {[%clk 0:00:46]} 23. Qa3+ {[%clk 0:00:03]}  c5 {[%clk 0:00:27]} 24. Qxa7 {[%clk 0:00:03]}  Qh3 {[%clk 0:00:27]} 25. Qxb7+ {[%clk 0:00:02]}  Rd7 {[%clk 0:00:28]} 26. Qg2 {[%clk 0:00:02]}  Qxg2+ {[%clk 0:00:25]} 27. Kxg2 {[%clk 0:00:03]}  Rd2+ {[%clk 0:00:25]} 28. Kf3 {[%clk 0:00:04]}  Bd4 {[%clk 0:00:26]} 29. Ne4 {[%clk 0:00:03]}  Rxh2 {[%clk 0:00:22]} 30. Rc1 {[%clk 0:00:03]}  Nd7 {[%clk 0:00:20]} 31. a4 {[%clk 0:00:02]}  Nxe5+ {[%clk 0:00:20]} 32. Kg3 {[%clk 0:00:02]}  Rxb2 {[%clk 0:00:18]} 33. Nxc5 {[%clk 0:00:03]}  Be3 {[%clk 0:00:14]} 34. Rd1 {[%clk 0:00:01]}  Bxc5 {[%clk 0:00:14]} 35. Rd5 {[%clk 0:00:01]}  Bd6 {[%clk 0:00:14]} 0-1


[Site "https://www.chess.com"]

[Event "Titled Tuesday Blitz June 28 Early 2022"]
[White "Kozlov, Oleg"]
[Black "Rom, Jasper"]
[WhiteFideId "4104544"]
[BlackFideId "2023733"]
[WhiteElo "2132"]
[BlackElo "2233"]
[Result "0-1"]
[Round "10"]
[TimeControl "180+1"]
[Date "2022.06.28"]
[WhiteClock "0:00:50"]
[BlackClock "0:00:55"]

1. d4 {[%clk 0:02:57]}  d5 {[%clk 0:02:59]} 2. c4 {[%clk 0:02:57]}  e6 {[%clk 0:02:59]} 3. Nf3 {[%clk 0:02:57]}  c6 {[%clk 0:02:58]} 4. g3 {[%clk 0:02:57]}  Nf6 {[%clk 0:02:58]} 5. Bg2 {[%clk 0:02:57]}  Bb4+ {[%clk 0:02:58]} 6. Nbd2 {[%clk 0:02:54]}  O-O {[%clk 0:02:57]} 7. O-O {[%clk 0:02:53]}  b6 {[%clk 0:02:57]} 8. Qc2 {[%clk 0:02:52]}  Bb7 {[%clk 0:02:56]} 9. a3 {[%clk 0:02:52]}  Be7 {[%clk 0:02:55]} 10. e4 {[%clk 0:02:52]}  Na6 {[%clk 0:02:49]} 11. Rd1 {[%clk 0:02:26]}  Rc8 {[%clk 0:02:46]} 12. Qb1 {[%clk 0:02:13]}  Qc7 {[%clk 0:02:35]} 13. b4 {[%clk 0:02:09]}  c5 {[%clk 0:02:22]} 14. exd5 {[%clk 0:02:08]}  exd5 {[%clk 0:02:21]} 15. dxc5 {[%clk 0:02:04]}  bxc5 {[%clk 0:02:18]} 16. b5 {[%clk 0:02:04]}  Nb8 {[%clk 0:02:18]} 17. cxd5 {[%clk 0:02:04]}  Bxd5 {[%clk 0:02:15]} 18. Bb2 {[%clk 0:02:01]}  c4 {[%clk 0:02:13]} 19. Rc1 {[%clk 0:01:44]}  Qb7 {[%clk 0:02:01]} 20. a4 {[%clk 0:01:40]}  Ne4 {[%clk 0:01:55]} 21. Bh3 {[%clk 0:01:31]}  c3 {[%clk 0:01:39]} 22. Bxc8 {[%clk 0:01:30]}  Rxc8 {[%clk 0:01:38]} 23. Bxc3 {[%clk 0:01:23]}  Nxc3 {[%clk 0:01:38]} 24. Qd3 {[%clk 0:01:23]}  Bf6 {[%clk 0:01:23]} 25. Kf1 {[%clk 0:00:59]}  Be6 {[%clk 0:01:05]} 26. Ra3 {[%clk 0:00:54]}  Bh3+ {[%clk 0:00:58]} 27. Ke1 {[%clk 0:00:50]}  Re8+ {[%clk 0:00:55]} 0-1


[Site "https://www.chess.com"]

[Event "Titled Tuesday Blitz June 28 Early 2022"]
[White "Kucuksari, Kaan"]
[Black "Jaskolka, Tomasz"]
[WhiteFideId "6380166"]
[BlackFideId "1170791"]
[WhiteElo "2305"]
[BlackElo "2073"]
[Result "0-1"]
[Round "10"]
[TimeControl "180+1"]
[Date "2022.06.28"]
[WhiteClock "0:00:03"]
[BlackClock "0:00:47"]

1. d4 {[%clk 0:03:00]}  e6 {[%clk 0:02:58]} 2. c4 {[%clk 0:03:01]}  f5 {[%clk 0:02:58]} 3. Nf3 {[%clk 0:03:01]}  Nf6 {[%clk 0:02:59]} 4. g3 {[%clk 0:03:01]}  Be7 {[%clk 0:03:00]} 5. Bg2 {[%clk 0:03:01]}  O-O {[%clk 0:03:00]} 6. O-O {[%clk 0:03:02]}  d6 {[%clk 0:03:01]} 7. Nc3 {[%clk 0:03:02]}  Qe8 {[%clk 0:03:02]} 8. Re1 {[%clk 0:03:01]}  Qg6 {[%clk 0:02:58]} 9. b4 {[%clk 0:02:57]}  Ne4 {[%clk 0:02:56]} 10. Bb2 {[%clk 0:02:53]}  Nxc3 {[%clk 0:02:54]} 11. Bxc3 {[%clk 0:02:54]}  Nd7 {[%clk 0:02:55]} 12. e4 {[%clk 0:02:53]}  fxe4 {[%clk 0:02:54]} 13. Rxe4 {[%clk 0:02:45]}  e5 {[%clk 0:02:31]} 14. Nh4 {[%clk 0:02:27]}  Bxh4 {[%clk 0:02:22]} 15. Rxh4 {[%clk 0:02:27]}  exd4 {[%clk 0:02:21]} 16. Qxd4 {[%clk 0:02:28]}  Ne5 {[%clk 0:02:20]} 17. f4 {[%clk 0:02:23]}  Nc6 {[%clk 0:02:17]} 18. Bd5+ {[%clk 0:02:20]}  Kh8 {[%clk 0:02:17]} 19. Bxc6 {[%clk 0:02:09]}  bxc6 {[%clk 0:02:17]} 20. Re1 {[%clk 0:02:09]}  Bb7 {[%clk 0:02:11]} 21. Re7 {[%clk 0:02:09]}  Rf7 {[%clk 0:02:11]} 22. f5 {[%clk 0:01:42]}  Qxf5 {[%clk 0:02:11]} 23. Rf4 {[%clk 0:00:32]}  Qxf4 {[%clk 0:01:50]} 24. Qxg7+ {[%clk 0:00:32]}  Rxg7 {[%clk 0:01:50]} 25. Bxg7+ {[%clk 0:00:33]}  Kg8 {[%clk 0:01:50]} 26. gxf4 {[%clk 0:00:34]}  c5 {[%clk 0:01:45]} 27. Rxc7 {[%clk 0:00:34]}  Be4 {[%clk 0:01:45]} 28. bxc5 {[%clk 0:00:31]}  dxc5 {[%clk 0:01:46]} 29. Be5 {[%clk 0:00:31]}  Rd8 {[%clk 0:01:43]} 30. Rg7+ {[%clk 0:00:31]}  Kf8 {[%clk 0:01:44]} 31. Rxa7 {[%clk 0:00:30]}  Rd2 {[%clk 0:01:44]} 32. a4 {[%clk 0:00:26]}  Rg2+ {[%clk 0:01:44]} 33. Kf1 {[%clk 0:00:26]}  Rxh2 {[%clk 0:01:44]} 34. a5 {[%clk 0:00:27]}  Ra2 {[%clk 0:01:42]} 35. a6 {[%clk 0:00:26]}  Bd3+ {[%clk 0:01:43]} 36. Ke1 {[%clk 0:00:26]}  Bxc4 {[%clk 0:01:43]} 37. Ra8+ {[%clk 0:00:24]}  Kf7 {[%clk 0:01:44]} 38. a7 {[%clk 0:00:25]}  Bd5 {[%clk 0:01:37]} 39. Rd8 {[%clk 0:00:23]}  Be4 {[%clk 0:01:25]} 40. Rd7+ {[%clk 0:00:16]}  Ke6 {[%clk 0:01:25]} 41. Rc7 {[%clk 0:00:12]}  Kd5 {[%clk 0:01:15]} 42. Kd1 {[%clk 0:00:06]}  Kc4 {[%clk 0:01:09]} 43. Bd6 {[%clk 0:00:04]}  Kd3 {[%clk 0:01:09]} 44. Rxc5 {[%clk 0:00:03]}  Ra1+ {[%clk 0:01:09]} 45. Rc1 {[%clk 0:00:03]}  Bf3+ {[%clk 0:01:10]} 46. Ke1 {[%clk 0:00:03]}  Rxc1+ {[%clk 0:01:11]} 47. Kf2 {[%clk 0:00:04]}  Ba8 {[%clk 0:01:11]} 48. f5 {[%clk 0:00:04]}  Rc6 {[%clk 0:01:08]} 49. Be7 {[%clk 0:00:04]}  Rc7 {[%clk 0:01:07]} 50. f6 {[%clk 0:00:04]}  Rc2+ {[%clk 0:00:50]} 51. Kf1 {[%clk 0:00:04]}  Ke3 {[%clk 0:00:49]} 52. Ba3 {[%clk 0:00:03]}  Rf2+ {[%clk 0:00:49]} 53. Ke1 {[%clk 0:00:03]}  Rxf6 {[%clk 0:00:49]} 54. Bc1+ {[%clk 0:00:03]}  Kd3 {[%clk 0:00:49]} 55. Be3 {[%clk 0:00:03]}  Kxe3 {[%clk 0:00:49]} 56. Kd1 {[%clk 0:00:03]}  Be4 {[%clk 0:00:49]} 57. Ke1 {[%clk 0:00:03]}  Rb6 {[%clk 0:00:47]} 0-1


[Site "https://www.chess.com"]

[Event "Titled Tuesday Blitz June 28 Early 2022"]
[White "Li, Zhuoling"]
[Black "Kanyamarala, Tarun"]
[WhiteFideId "8605629"]
[BlackFideId "45004714"]
[WhiteElo "2286"]
[BlackElo "2219"]
[Result "1-0"]
[Round "10"]
[TimeControl "180+1"]
[Date "2022.06.28"]
[WhiteClock "0:00:23"]
[BlackClock "0:01:32"]

1. e4 {[%clk 0:03:00]}  c6 {[%clk 0:02:54]} 2. d4 {[%clk 0:03:00]}  d5 {[%clk 0:02:54]} 3. e5 {[%clk 0:03:00]}  c5 {[%clk 0:02:53]} 4. dxc5 {[%clk 0:02:59]}  e6 {[%clk 0:02:53]} 5. a3 {[%clk 0:02:59]}  Bxc5 {[%clk 0:02:53]} 6. b4 {[%clk 0:02:54]}  Be7 {[%clk 0:02:52]} 7. Nf3 {[%clk 0:02:47]}  f6 {[%clk 0:02:51]} 8. Bb2 {[%clk 0:02:43]}  Nc6 {[%clk 0:02:48]} 9. Bb5 {[%clk 0:02:23]}  Bd7 {[%clk 0:02:44]} 10. Bxc6 {[%clk 0:02:21]}  bxc6 {[%clk 0:02:43]} 11. O-O {[%clk 0:02:21]}  Nh6 {[%clk 0:02:43]} 12. Re1 {[%clk 0:02:14]}  O-O {[%clk 0:02:42]} 13. c4 {[%clk 0:02:10]}  Be8 {[%clk 0:02:41]} 14. cxd5 {[%clk 0:02:05]}  cxd5 {[%clk 0:02:41]} 15. Nbd2 {[%clk 0:01:58]}  Bh5 {[%clk 0:02:40]} 16. Qb3 {[%clk 0:01:54]}  fxe5 {[%clk 0:02:28]} 17. Rxe5 {[%clk 0:01:40]}  Bg4 {[%clk 0:02:27]} 18. h3 {[%clk 0:01:37]}  Bf5 {[%clk 0:02:23]} 19. Rae1 {[%clk 0:01:32]}  Bd6 {[%clk 0:02:21]} 20. R5e2 {[%clk 0:01:27]}  a5 {[%clk 0:02:16]} 21. b5 {[%clk 0:01:20]}  a4 {[%clk 0:02:12]} 22. Qc3 {[%clk 0:01:17]}  Rf7 {[%clk 0:01:58]} 23. Nd4 {[%clk 0:01:16]}  Rc8 {[%clk 0:01:55]} 24. Nc6 {[%clk 0:01:07]}  Qc7 {[%clk 0:01:50]} 25. Nf3 {[%clk 0:01:01]}  Rcf8 {[%clk 0:01:47]} 26. Ng5 {[%clk 0:00:56]}  Rf6 {[%clk 0:01:44]} 27. Ne5 {[%clk 0:00:24]}  Bxe5 {[%clk 0:01:32]} 28. Qxe5 {[%clk 0:00:23]}  Qd6 {[%clk 0:01:32]} 29. Qxd6 {[%clk 0:00:23]} 1-0


[Site "https://www.chess.com"]

[Event "Titled Tuesday Blitz June 28 Early 2022"]
[White "Liyanage, Ranindu Dilshan"]
[Black "Tan, Jun Ying"]
[WhiteFideId "9915834"]
[BlackFideId "5710413"]
[WhiteElo "1858"]
[BlackElo "1827"]
[Result "1-0"]
[Round "10"]
[TimeControl "180+1"]
[Date "2022.06.28"]
[WhiteClock "0:00:16"]
[BlackClock "0:00:05"]

1. d4 {[%clk 0:03:00]}  Nf6 {[%clk 0:02:59]} 2. Nc3 {[%clk 0:03:01]}  d5 {[%clk 0:02:59]} 3. Bf4 {[%clk 0:03:01]}  a6 {[%clk 0:03:00]} 4. e3 {[%clk 0:03:00]}  c5 {[%clk 0:03:00]} 5. Nf3 {[%clk 0:03:00]}  Nc6 {[%clk 0:03:00]} 6. Ne5 {[%clk 0:02:42]}  cxd4 {[%clk 0:02:52]} 7. exd4 {[%clk 0:02:39]}  e6 {[%clk 0:02:48]} 8. Qd2 {[%clk 0:02:27]}  Bb4 {[%clk 0:02:47]} 9. Nxc6 {[%clk 0:02:25]}  bxc6 {[%clk 0:02:47]} 10. Bd3 {[%clk 0:02:26]}  c5 {[%clk 0:02:43]} 11. a3 {[%clk 0:02:24]}  Ba5 {[%clk 0:02:39]} 12. Be5 {[%clk 0:02:01]}  cxd4 {[%clk 0:02:30]} 13. Bxd4 {[%clk 0:02:02]}  O-O {[%clk 0:02:23]} 14. O-O {[%clk 0:01:59]}  Bc7 {[%clk 0:02:15]} 15. Rfe1 {[%clk 0:01:51]}  Ng4 {[%clk 0:02:07]} 16. h3 {[%clk 0:01:48]}  Nf6 {[%clk 0:01:26]} 17. Qg5 {[%clk 0:01:32]}  Kh8 {[%clk 0:01:26]} 18. Qh4 {[%clk 0:01:27]}  h6 {[%clk 0:01:26]} 19. g4 {[%clk 0:01:16]}  Ng8 {[%clk 0:01:19]} 20. Qh5 {[%clk 0:01:08]}  Qg5 {[%clk 0:01:14]} 21. Qxg5 {[%clk 0:01:04]}  hxg5 {[%clk 0:01:15]} 22. Kg2 {[%clk 0:01:03]}  Bb7 {[%clk 0:01:03]} 23. h4 {[%clk 0:01:01]}  Ne7 {[%clk 0:00:32]} 24. hxg5 {[%clk 0:00:56]}  e5 {[%clk 0:00:18]} 25. Bxe5 {[%clk 0:00:44]}  Bxe5 {[%clk 0:00:18]} 26. Rxe5 {[%clk 0:00:43]}  Ng6 {[%clk 0:00:18]} 27. Bxg6 {[%clk 0:00:32]}  fxg6 {[%clk 0:00:19]} 28. Nxd5 {[%clk 0:00:32]}  Rf4 {[%clk 0:00:17]} 29. f3 {[%clk 0:00:28]}  Rd4 {[%clk 0:00:14]} 30. Ne7 {[%clk 0:00:17]}  Rxg4+ {[%clk 0:00:11]} 31. Kf2 {[%clk 0:00:17]}  Rf8 {[%clk 0:00:05]} 32. Rh1+ {[%clk 0:00:15]}  Rh4 {[%clk 0:00:05]} 33. Rxh4# {[%clk 0:00:16]} 1-0


[Site "https://www.chess.com"]

[Event "Titled Tuesday Blitz June 28 Early 2022"]
[White "Madaminov, Mukhiddin"]
[Black "Marjanovic, Annamaria"]
[WhiteFideId "14210703"]
[BlackFideId "750930"]
[WhiteElo "1916"]
[BlackElo "2156"]
[Result "1/2-1/2"]
[Round "10"]
[TimeControl "180+1"]
[Date "2022.06.28"]
[WhiteClock "0:02:00"]
[BlackClock "0:01:13"]

1. d4 {[%clk 0:03:00]}  f5 {[%clk 0:02:57]} 2. Bg5 {[%clk 0:02:59]}  Nf6 {[%clk 0:02:54]} 3. Bxf6 {[%clk 0:02:59]}  exf6 {[%clk 0:02:53]} 4. e3 {[%clk 0:03:00]}  d5 {[%clk 0:02:53]} 5. c4 {[%clk 0:02:59]}  c6 {[%clk 0:02:52]} 6. Nc3 {[%clk 0:02:59]}  Be6 {[%clk 0:02:49]} 7. cxd5 {[%clk 0:02:59]}  cxd5 {[%clk 0:02:49]} 8. g3 {[%clk 0:02:57]}  Nc6 {[%clk 0:02:46]} 9. Bg2 {[%clk 0:02:57]}  Bb4 {[%clk 0:02:45]} 10. Ne2 {[%clk 0:02:57]}  Bf7 {[%clk 0:02:44]} 11. O-O {[%clk 0:02:56]}  Qd7 {[%clk 0:02:42]} 12. a3 {[%clk 0:02:56]}  Bxc3 {[%clk 0:02:30]} 13. Nxc3 {[%clk 0:02:56]}  O-O {[%clk 0:02:29]} 14. Rc1 {[%clk 0:02:56]}  Rfd8 {[%clk 0:02:24]} 15. Ne2 {[%clk 0:02:53]}  Ne7 {[%clk 0:02:20]} 16. Nf4 {[%clk 0:02:52]}  g6 {[%clk 0:02:14]} 17. h4 {[%clk 0:02:50]}  Rac8 {[%clk 0:02:10]} 18. Qb3 {[%clk 0:02:50]}  b6 {[%clk 0:02:08]} 19. Qb4 {[%clk 0:02:48]}  g5 {[%clk 0:02:01]} 20. hxg5 {[%clk 0:02:48]}  fxg5 {[%clk 0:02:02]} 21. Nd3 {[%clk 0:02:48]}  Qe6 {[%clk 0:01:57]} 22. Ne5 {[%clk 0:02:46]}  Ng6 {[%clk 0:01:52]} 23. f4 {[%clk 0:02:46]}  Nxe5 {[%clk 0:01:50]} 24. fxe5 {[%clk 0:02:45]}  Rxc1 {[%clk 0:01:42]} 25. Rxc1 {[%clk 0:02:45]}  Rc8 {[%clk 0:01:42]} 26. Rxc8+ {[%clk 0:02:30]}  Qxc8 {[%clk 0:01:43]} 27. Qe7 {[%clk 0:02:30]}  Qc1+ {[%clk 0:01:33]} 28. Kh2 {[%clk 0:02:30]}  Qxe3 {[%clk 0:01:33]} 29. e6 {[%clk 0:02:22]}  Qxe6 {[%clk 0:01:26]} 30. Qxg5+ {[%clk 0:02:21]}  Qg6 {[%clk 0:01:20]} 31. Qd8+ {[%clk 0:02:14]}  Kg7 {[%clk 0:01:19]} 32. Qc7 {[%clk 0:02:06]}  Qh5+ {[%clk 0:01:15]} 33. Bh3 {[%clk 0:02:02]}  Qe2+ {[%clk 0:01:14]} 34. Bg2 {[%clk 0:02:02]}  Qh5+ {[%clk 0:01:13]} 35. Bh3 {[%clk 0:01:59]}  Qe2+ {[%clk 0:01:13]} 36. Bg2 {[%clk 0:02:00]}  Qh5+ {[%clk 0:01:13]} 1/2-1/2


[Site "https://www.chess.com"]

[Event "Titled Tuesday Blitz June 28 Early 2022"]
[White "Mekhane, Adam"]
[Black "Tasev, Dejan"]
[WhiteFideId "36050601"]
[BlackFideId "936618"]
[WhiteElo "2002"]
[BlackElo "2253"]
[Result "1-0"]
[Round "10"]
[TimeControl "180+1"]
[Date "2022.06.28"]
[WhiteClock "0:01:27"]
[BlackClock "0:00:16"]

1. e4 {[%clk 0:02:56]}  e5 {[%clk 0:02:58]} 2. Nf3 {[%clk 0:02:56]}  Nc6 {[%clk 0:02:58]} 3. Bb5 {[%clk 0:02:56]}  a6 {[%clk 0:02:58]} 4. Ba4 {[%clk 0:02:56]}  Nf6 {[%clk 0:02:57]} 5. O-O {[%clk 0:02:48]}  b5 {[%clk 0:02:56]} 6. Bb3 {[%clk 0:02:47]}  Be7 {[%clk 0:02:56]} 7. a4 {[%clk 0:02:42]}  Bb7 {[%clk 0:02:51]} 8. axb5 {[%clk 0:02:34]}  axb5 {[%clk 0:02:51]} 9. Rxa8 {[%clk 0:02:34]}  Qxa8 {[%clk 0:02:51]} 10. Re1 {[%clk 0:02:30]}  O-O {[%clk 0:02:47]} 11. Nc3 {[%clk 0:02:29]}  b4 {[%clk 0:02:42]} 12. Nd5 {[%clk 0:02:28]}  Bd8 {[%clk 0:02:30]} 13. d4 {[%clk 0:02:15]}  exd4 {[%clk 0:02:15]} 14. Nxd4 {[%clk 0:02:14]}  Nxd5 {[%clk 0:02:06]} 15. Bxd5 {[%clk 0:02:08]}  d6 {[%clk 0:01:31]} 16. Nxc6 {[%clk 0:01:57]}  Bxc6 {[%clk 0:01:30]} 17. Qd4 {[%clk 0:01:57]}  Bxd5 {[%clk 0:01:23]} 18. exd5 {[%clk 0:01:56]}  Bf6 {[%clk 0:01:21]} 19. Qc4 {[%clk 0:01:53]}  Qb7 {[%clk 0:01:18]} 20. b3 {[%clk 0:01:48]}  h6 {[%clk 0:01:04]} 21. Bd2 {[%clk 0:01:48]}  Rb8 {[%clk 0:01:01]} 22. g3 {[%clk 0:01:47]}  Qb6 {[%clk 0:00:48]} 23. Re4 {[%clk 0:01:46]}  Ra8 {[%clk 0:00:39]} 24. Qxb4 {[%clk 0:01:41]}  Ra1+ {[%clk 0:00:37]} 25. Kg2 {[%clk 0:01:40]}  Qa7 {[%clk 0:00:36]} 26. Re8+ {[%clk 0:01:35]}  Kh7 {[%clk 0:00:36]} 27. Qe4+ {[%clk 0:01:32]}  g6 {[%clk 0:00:35]} 28. Qf4 {[%clk 0:01:28]}  Bg7 {[%clk 0:00:16]} 29. Qxf7 {[%clk 0:01:27]} 1-0


[Site "https://www.chess.com"]

[Event "Titled Tuesday Blitz June 28 Early 2022"]
[White "Mickiewicz, Piotr"]
[Black "Polster, Christian"]
[WhiteFideId "1114891"]
[BlackFideId "12965081"]
[WhiteElo "2209"]
[BlackElo "2316"]
[Result "1/2-1/2"]
[Round "10"]
[TimeControl "180+1"]
[Date "2022.06.28"]
[WhiteClock "0:00:03"]
[BlackClock "0:00:05"]

1. Nf3 {[%clk 0:02:55]}  d5 {[%clk 0:02:58]} 2. c4 {[%clk 0:02:54]}  d4 {[%clk 0:02:58]} 3. e3 {[%clk 0:02:53]}  c5 {[%clk 0:02:57]} 4. exd4 {[%clk 0:02:52]}  cxd4 {[%clk 0:02:58]} 5. d3 {[%clk 0:02:52]}  Nc6 {[%clk 0:02:57]} 6. a3 {[%clk 0:02:52]}  a5 {[%clk 0:02:56]} 7. g3 {[%clk 0:02:51]}  e5 {[%clk 0:02:55]} 8. Bg2 {[%clk 0:02:51]}  Nf6 {[%clk 0:02:44]} 9. O-O {[%clk 0:02:50]}  Bd6 {[%clk 0:02:44]} 10. Bg5 {[%clk 0:02:47]}  O-O {[%clk 0:02:44]} 11. Nbd2 {[%clk 0:02:45]}  Be7 {[%clk 0:02:40]} 12. Re1 {[%clk 0:02:40]}  Nd7 {[%clk 0:02:38]} 13. Bxe7 {[%clk 0:02:38]}  Qxe7 {[%clk 0:02:39]} 14. Qc2 {[%clk 0:02:05]}  a4 {[%clk 0:01:54]} 15. b4 {[%clk 0:02:02]}  axb3 {[%clk 0:01:53]} 16. Qxb3 {[%clk 0:02:01]}  Nc5 {[%clk 0:01:51]} 17. Qc2 {[%clk 0:02:00]}  Qc7 {[%clk 0:01:32]} 18. Nb3 {[%clk 0:01:55]}  Na4 {[%clk 0:01:27]} 19. Nfd2 {[%clk 0:01:54]}  f5 {[%clk 0:01:14]} 20. c5 {[%clk 0:01:45]}  Be6 {[%clk 0:00:54]} 21. Nc4 {[%clk 0:01:43]}  Rfe8 {[%clk 0:00:28]} 22. f4 {[%clk 0:01:39]}  exf4 {[%clk 0:00:16]} 23. Rxe6 {[%clk 0:01:37]}  Rxe6 {[%clk 0:00:15]} 24. Bd5 {[%clk 0:01:36]}  Re8 {[%clk 0:00:15]} 25. Re1 {[%clk 0:01:35]}  Qd7 {[%clk 0:00:09]} 26. Nd6 {[%clk 0:01:33]}  Kh8 {[%clk 0:00:08]} 27. Bxe6 {[%clk 0:01:12]}  Rxe6 {[%clk 0:00:08]} 28. Rxe6 {[%clk 0:01:13]}  Qxe6 {[%clk 0:00:09]} 29. gxf4 {[%clk 0:01:12]}  Qe3+ {[%clk 0:00:06]} 30. Kg2 {[%clk 0:00:59]}  Qxf4 {[%clk 0:00:04]} 31. Nxb7 {[%clk 0:00:58]}  Nc3 {[%clk 0:00:03]} 32. Nd6 {[%clk 0:00:53]}  Qg4+ {[%clk 0:00:02]} 33. Kf2 {[%clk 0:00:42]}  Qf4+ {[%clk 0:00:02]} 34. Kg1 {[%clk 0:00:42]}  Qe3+ {[%clk 0:00:02]} 35. Qf2 {[%clk 0:00:36]}  Qxd3 {[%clk 0:00:01]} 36. Nxf5 {[%clk 0:00:24]}  Ne2+ {[%clk 0:00:01]} 37. Kg2 {[%clk 0:00:23]}  Nc3 {[%clk 0:00:01]} 38. Nbxd4 {[%clk 0:00:22]}  Nxd4 {[%clk 0:00:01]} 39. Nxd4 {[%clk 0:00:22]}  Kg8 {[%clk 0:00:02]} 40. Qf4 {[%clk 0:00:13]}  Qe4+ {[%clk 0:00:03]} 41. Qxe4 {[%clk 0:00:12]}  Nxe4 {[%clk 0:00:04]} 42. c6 {[%clk 0:00:12]}  Nd6 {[%clk 0:00:04]} 43. c7 {[%clk 0:00:12]}  Kf7 {[%clk 0:00:05]} 44. Nb5 {[%clk 0:00:13]}  Nc8 {[%clk 0:00:06]} 45. a4 {[%clk 0:00:13]}  Ke7 {[%clk 0:00:06]} 46. Kf3 {[%clk 0:00:13]}  Kd7 {[%clk 0:00:07]} 47. Ke4 {[%clk 0:00:13]}  Kc6 {[%clk 0:00:07]} 48. Ke5 {[%clk 0:00:13]}  Kd7 {[%clk 0:00:07]} 49. Kd5 {[%clk 0:00:12]}  Nb6+ {[%clk 0:00:05]} 50. Kd4 {[%clk 0:00:08]}  Nxa4 {[%clk 0:00:06]} 51. h4 {[%clk 0:00:08]}  Nb6 {[%clk 0:00:06]} 52. h5 {[%clk 0:00:09]}  Na8 {[%clk 0:00:06]} 53. Nd6 {[%clk 0:00:06]}  Nxc7 {[%clk 0:00:05]} 54. Nf5 {[%clk 0:00:07]}  Ne6+ {[%clk 0:00:05]} 55. Ke5 {[%clk 0:00:06]}  Ng5 {[%clk 0:00:04]} 56. Nxg7 {[%clk 0:00:05]}  Nf7+ {[%clk 0:00:04]} 57. Kf6 {[%clk 0:00:05]}  Nd6 {[%clk 0:00:04]} 58. Nf5 {[%clk 0:00:06]}  Ne4+ {[%clk 0:00:04]} 59. Kg7 {[%clk 0:00:05]}  Ke6 {[%clk 0:00:04]} 60. Nh6 {[%clk 0:00:05]}  Nf6 {[%clk 0:00:04]} 61. Ng4 {[%clk 0:00:03]}  Nxh5+ {[%clk 0:00:05]} 62. Kxh7 {[%clk 0:00:03]} 1/2-1/2


[Site "https://www.chess.com"]